fUSD/lending_fUSD_20260405
["ID","MTS","AMOUNT","RATE_DAILY","PERIOD"]
[419809016,1775392250140,-1500.0,0.00014795,2]
[419809017,1775392250150,-1500.0,0.00014795,2]
[419809018,1775392250160,-1500.0,0.00014795,2]
[419809019,1775392250170,-1500.0,0.00014795,2]
[419809020,1775392250180,-1500.0,0.00014795,2]
[419809021,1775392250191,-1500.0,0.00014795,2]
[419809022,1775392250201,-1500.0,0.00014795,2]
[419809023,1775392250211,-1500.0,0.00014795,2]
[419809024,1775392250221,-418.3764967,0.00014795,2]
[419809025,1775392250232,-1500.0,0.00014795,2]
[419809026,1775392250242,-1500.0,0.00014795,2]
[419809027,1775392250252,-1500.0,0.00014795,2]
[419809028,1775392250263,-186.27125357,0.00014795,2]
[419809029,1775392250274,-1500.0,0.00014795,2]
[419809030,1775392250284,-1500.0,0.00014795,2]
[419809031,1775392250294,-1500.0,0.00014795,2]
[419809032,1775392250304,-1500.0,0.00014795,2]
[419809033,1775392250314,-150.0,0.00014795,2]
[419809034,1775392250325,-553.41835149,0.00014795,2]
[419809035,1775392250335,-535.01,0.00014796,2]
[419809036,1775392250345,-150.0,0.000148,2]
[419809037,1775392250355,-150.0,0.000148,2]
[419809038,1775392250365,-150.0,0.000148,2]
[419809039,1775392250375,-150.0,0.00014809,2]
[419809040,1775392250385,-150.0,0.00014813,2]
[419809041,1775392250395,-150.0,0.00014816,2]
[419809042,1775392250406,-150.0,0.00014817,2]
[419809043,1775392250415,-535.01,0.00014818,2]
[419809044,1775392250425,-150.0,0.00014823,2]
[419809045,1775392250435,-150.0,0.00014827,2]
[419809046,1775392250445,-150.0,0.00014829,2]
[419809047,1775392250455,-150.0,0.00014829,2]
[419809048,1775392250465,-150.0,0.00014836,2]
[419809049,1775392250475,-150.0,0.00014841,2]
[419809050,1775392250485,-535.01,0.00014841,2]
[419809051,1775392250495,-150.0,0.00014844,2]
[419809052,1775392250505,-150.0,0.00014853,2]
[419809053,1775392250515,-150.0,0.00014857,2]
[419809054,1775392250525,-150.0,0.00014857,2]
[419809055,1775392250535,-150.0,0.00014857,2]
[419809056,1775392250545,-150.0,0.00014862,2]
[419809057,1775392250555,-150.0,0.00014864,2]
[419809058,1775392250565,-150.0,0.00014865,2]
[419809059,1775392250575,-150.0,0.00014867,2]
[419809060,1775392250585,-150.0,0.00014871,2]
[419809061,1775392250595,-150.0,0.00014878,2]
[419809062,1775392250605,-150.0,0.0001488,2]
[419809063,1775392250615,-150.0,0.00014883,2]
[419809064,1775392250625,-150.0,0.00014886,2]
[419809065,1775392250635,-150.0,0.00014886,2]
[419809066,1775392250644,-150.0,0.00014887,2]
[419809067,1775392250654,-150.0,0.00014898,2]
[419809068,1775392250664,-150.0,0.00014899,2]
[419809069,1775392250673,-687.92204042,0.000149,2]
[419809070,1775392250683,-150.0,0.0001491,2]
[419809071,1775392250692,-150.0,0.00014913,2]
[419809072,1775392250702,-150.0,0.00014914,2]
[419809073,1775392250711,-150.0,0.00014914,2]
[419809074,1775392250721,-150.0,0.00014916,2]
[419809075,1775392250731,-150.0,0.00014916,2]
[419809076,1775392250740,-150.0,0.00014919,2]
[419809077,1775392250749,-200.0,0.00014932,2]
[419809078,1775392250758,-8395.69276032,0.00014933,2]
[419809079,1775392250768,-150.0,0.00014933,2]
[419809080,1775392250777,-150.0,0.00014933,2]
[419809081,1775392250787,-150.0,0.00014933,2]
[419809082,1775392250796,-150.0,0.00014933,2]
[419809083,1775392250805,-150.0,0.0001494,2]
[419809084,1775392250814,-150.0,0.00014943,2]
[419809085,1775392250824,-150.0,0.00014943,2]
[419809086,1775392250833,-150.0,0.00014943,2]
[419809087,1775392250842,-150.0,0.00014951,2]
[419809088,1775392250852,-150.0,0.00014957,2]
[419809089,1775392250861,-150.0,0.00014961,2]
[419809090,1775392250871,-150.0,0.00014965,2]
[419809091,1775392250881,-150.0,0.00014968,2]
[419809092,1775392250892,-150.0,0.00014969,2]
[419809093,1775392250903,-150.0,0.00014971,2]
[419809094,1775392250914,-150.0,0.00014971,2]
[419809095,1775392250923,-150.0,0.00014974,2]
[419809096,1775392250934,-150.0,0.0001498,2]
[419809097,1775392250945,-150.0,0.00014982,2]
[419809098,1775392250955,-150.0,0.00014987,2]
[419809099,1775392250966,-150.0,0.00015,2]
[419809100,1775392250977,-150.0,0.00015,2]
[419809101,1775392250987,-150.0,0.00015,2]
[419809102,1775392250997,-150.0,0.00015003,2]
[419809103,1775392251007,-150.0,0.00015003,2]
[419809104,1775392251018,-150.0,0.00015004,2]
[419809105,1775392251028,-150.0,0.00015004,2]
[419809106,1775392251038,-500.0,0.00015015,2]
[419809107,1775392251048,-2000.0,0.00015015,2]
[419809108,1775392251058,-150.0,0.00015019,2]
[419809109,1775392251068,-150.0,0.00015022,2]
[419809110,1775392251078,-150.0,0.00015023,2]
[419809111,1775392251087,-150.0,0.00015026,2]
[419809112,1775392251097,-150.0,0.00015029,2]
[419809113,1775392251107,-150.0,0.00015029,2]
[419809114,1775392251117,-150.0,0.00015034,2]
[419809115,1775392251127,-150.0,0.0001504,2]
[419809116,1775392251137,-150.0,0.0001504,2]
[419809117,1775392251147,-150.0,0.00015044,2]
[419809118,1775392251157,-150.0,0.00015049,2]
[419809119,1775392251166,-150.0,0.00015057,2]
[419809120,1775392251176,-150.0,0.00015057,2]
[419809121,1775392251186,-150.0,0.00015058,2]
[419809122,1775392251196,-150.0,0.00015059,2]
[419809123,1775392251206,-150.0,0.00015064,2]
[419809124,1775392251216,-150.0,0.00015065,2]
[419809125,1775392251227,-150.0,0.00015067,2]
[419809126,1775392251237,-800.0,0.00015068,2]
[419809127,1775392251247,-150.0,0.00015071,2]
[419809128,1775392251256,-150.0,0.00015072,2]
[419809129,1775392251266,-150.0,0.00015076,2]
[419809130,1775392251276,-150.0,0.00015086,2]
[419809131,1775392251286,-150.0,0.00015086,2]
[419809132,1775392251296,-150.0,0.00015086,2]
[419809133,1775392251306,-150.0,0.00015093,2]
[419809134,1775392251316,-150.0,0.00015094,2]
[419809135,1775392251326,-150.0,0.00015096,2]
[419809136,1775392251336,-150.0,0.00015106,2]
[419809137,1775392251346,-150.0,0.00015111,2]
[419809138,1775392251355,-150.0,0.00015114,2]
[419809139,1775392251365,-150.0,0.00015114,2]
[419809140,1775392251375,-155.80569417,0.00015115,2]
[419809141,1775392251385,-150.0,0.00015119,2]
[419809142,1775392251395,-150.0,0.00015123,2]
[419809143,1775392251404,-150.0,0.00015125,2]
[419809144,1775392251414,-150.0,0.00015127,2]
[419809145,1775392251424,-150.0,0.00015129,2]
[419809146,1775392251434,-150.0,0.00015133,2]
[419809147,1775392251444,-150.0,0.00015142,2]
[419809148,1775392251454,-150.0,0.00015143,2]
[419809149,1775392251464,-150.0,0.00015143,2]
[419809150,1775392251474,-150.0,0.00015147,2]
[419809151,1775392251484,-150.0,0.00015148,2]
[419809152,1775392251493,-150.0,0.00015153,2]
[419809153,1775392251503,-150.0,0.00015155,2]
[419809154,1775392251512,-150.0,0.00015164,2]
[419809155,1775392251522,-150.0,0.00015165,2]
[419809156,1775392251532,-150.0,0.00015169,2]
[419809157,1775392251542,-150.0,0.00015171,2]
[419809158,1775392251551,-150.0,0.00015171,2]
[419809159,1775392251561,-150.0,0.00015174,2]
[419809160,1775392251571,-150.0,0.00015182,2]
[419809161,1775392251582,-150.0,0.00015185,2]
[419809162,1775392251592,-150.0,0.00015188,2]
[419809163,1775392251602,-150.0,0.0001519,2]
[419809164,1775392251612,-248.4417,0.000152,2]
[419809165,1775392251622,-150.0,0.000152,2]
[419809166,1775392251631,-150.0,0.000152,2]
[419809167,1775392251642,-150.0,0.000152,2]
[419809168,1775392251652,-150.0,0.000152,2]
[419809169,1775392251662,-150.0,0.000152,2]
[419809170,1775392251671,-150.0,0.000152,2]
[419809171,1775392251681,-150.0,0.000152,2]
[419809172,1775392251691,-1000.46413845,0.00015201,2]
[419809173,1775392251701,-150.0,0.0001521,2]
[419809174,1775392251711,-150.0,0.00015212,2]
[419809175,1775392251721,-150.0,0.00015215,2]
[419809176,1775392251731,-150.0,0.00015218,2]
[419809177,1775392251740,-150.0,0.00015226,2]
[419809178,1775392251751,-150.0,0.00015229,2]
[419809179,1775392251763,-150.0,0.00015229,2]
[419809180,1775392251772,-150.0,0.00015231,2]
[419809181,1775392251783,-150.0,0.00015235,2]
[419809182,1775392251792,-150.0,0.00015236,2]
[419809183,1775392251802,-150.0,0.00015245,2]
[419809184,1775392251813,-150.0,0.00015247,2]
[419809185,1775392251824,-150.0,0.00015252,2]
[419809186,1775392251836,-150.0,0.00015253,2]
[419809187,1775392251846,-150.0,0.00015257,2]
[419809188,1775392251857,-150.0,0.00015257,2]
[419809189,1775392251868,-150.0,0.00015258,2]
[419809190,1775392251878,-150.0,0.00015267,2]
[419809191,1775392251890,-150.0,0.00015271,2]
[419809192,1775392251901,-150.0,0.00015273,2]
[419809193,1775392251910,-150.0,0.00015275,2]
[419809194,1775392251920,-150.0,0.00015277,2]
[419809195,1775392251930,-150.0,0.00015281,2]
[419809196,1775392251940,-150.0,0.00015286,2]
[419809197,1775392251951,-150.0,0.00015286,2]
[419809198,1775392251961,-150.0,0.00015289,2]
[419809199,1775392251972,-150.0,0.00015294,2]
[419809200,1775392251982,-2000.0,0.00015301,2]
[419809201,1775392251993,-150.0,0.00015304,2]
[419809202,1775392252004,-150.0,0.00015306,2]
[419809203,1775392252013,-150.0,0.00015307,2]
[419809204,1775392252023,-150.0,0.00015314,2]
[419809205,1775392252033,-150.0,0.00015314,2]
[419809206,1775392252042,-150.0,0.00015314,2]
[419809207,1775392252052,-150.0,0.00015324,2]
[419809208,1775392252063,-150.0,0.00015328,2]
[419809209,1775392252072,-150.0,0.00015329,2]
[419809210,1775392252082,-150.0,0.00015333,2]
[419809211,1775392252092,-150.0,0.00015335,2]
[419809212,1775392252101,-150.0,0.00015336,2]
[419809213,1775392252111,-150.0,0.00015341,2]
[419809214,1775392252122,-150.0,0.00015342,2]
[419809215,1775392252131,-2000.0,0.00015342,2]
[419809216,1775392252141,-1762.51968471,0.00015342,2]
[419809217,1775392252151,-2000.0,0.00015342,2]
[419809218,1775392252160,-500.0,0.00015342,2]
[419809219,1775392252170,-1000.0,0.00015342,2]
[419809220,1775392252180,-1193.24301277,0.00015342,2]
[419809221,1775392252190,-2000.0,0.00015342,2]
[419809222,1775392252201,-2000.0,0.00015342,2]
[419809223,1775392252212,-1000.0,0.00015342,2]
[419809224,1775392252222,-1171.96403511,0.00015342,2]
[419809225,1775392252231,-1432.23819105,0.00015342,2]
[419809226,1775392252241,-1189.37318328,0.00015342,2]
[419809227,1775392252251,-2000.0,0.00015342,2]
[419809228,1775392252577,-1558.37452133,0.00015342,2]
[419809229,1775392252588,-740.76074935,0.00015342,2]
[419809230,1775392252599,-500.0,0.00015342,2]
[419809231,1775392252609,-2000.0,0.00015342,2]
[419809232,1775392252620,-2000.0,0.00015342,2]
[419809233,1775392252629,-2000.0,0.00015342,2]
[419809234,1775392252640,-2000.0,0.00015342,2]
[419809235,1775392252650,-2000.0,0.00015342,2]
[419809236,1775392252660,-2000.0,0.00015342,2]
[419809237,1775392252669,-1143.48326881,0.00015342,2]
[419809238,1775392252679,-2000.0,0.00015342,2]
[419809239,1775392252689,-1000.0,0.00015342,2]
[419809240,1775392252699,-1753.85680119,0.00015342,2]
[419809241,1775392252709,-2000.0,0.00015342,2]
[419809242,1775392252718,-2000.0,0.00015342,2]
[419809243,1775392252727,-2000.0,0.00015342,2]
[419809244,1775392252736,-347.07116371,0.00015342,2]
[419809245,1775392252746,-150.0,0.00015343,2]
[419809246,1775392252755,-150.0,0.00015343,2]
[419809247,1775392252764,-150.0,0.00015351,2]
[419809248,1775392252773,-150.0,0.00015356,2]
[419809249,1775392252783,-150.0,0.0001536,2]
[419809250,1775392252792,-150.0,0.0001536,2]
[419809251,1775392252802,-150.0,0.00015366,2]
[419809252,1775392252811,-150.0,0.00015371,2]
[419809253,1775392252820,-150.0,0.00015371,2]
[419809254,1775392252830,-150.0,0.00015374,2]
[419809255,1775392252839,-150.0,0.00015377,2]
[419809256,1775392252848,-150.0,0.00015378,2]
[419809257,1775392252857,-150.0,0.00015381,2]
[419809258,1775392252867,-150.0,0.00015396,2]
[419809259,1775392252876,-150.0,0.00015396,2]
[419809260,1775392252886,-150.0,0.00015397,2]
[419809261,1775392252895,-150.0,0.00015397,2]
[419809262,1775392252905,-150.0,0.000154,2]
[419809263,1775392252915,-150.0,0.000154,2]
[419809264,1775392252925,-150.0,0.000154,2]
[419809265,1775392252936,-2000.0,0.00015401,2]
[419809266,1775392252947,-150.0,0.00015413,2]
[419809267,1775392252958,-150.0,0.00015418,2]
[419809268,1775392252969,-150.0,0.0001542,2]
[419809269,1775392252981,-150.0,0.00015426,2]
[419809270,1775392252990,-150.0,0.00015429,2]
[419809271,1775392253000,-150.0,0.00015429,2]
[419809272,1775392253009,-150.0,0.00015431,2]
[419809273,1775392253019,-150.0,0.00015432,2]
[419809274,1775392253029,-150.0,0.00015435,2]
[419809275,1775392253040,-150.0,0.00015439,2]
[419809276,1775392253049,-150.0,0.00015443,2]
[419809277,1775392253058,-150.0,0.00015449,2]
[419809278,1775392253068,-503.0,0.00015452,2]
[419809279,1775392253077,-150.0,0.00015457,2]
[419809280,1775392253086,-150.0,0.00015457,2]
[419809281,1775392253096,-150.0,0.00015457,2]
[419809282,1775392253106,-150.0,0.0001546,2]
[419809283,1775392253116,-150.0,0.00015467,2]
[419809284,1775392253126,-150.0,0.00015467,2]
[419809285,1775392253135,-150.0,0.00015467,2]
[419809286,1775392253146,-150.0,0.00015467,2]
[419809287,1775392253155,-2119.54,0.00015471,2]
[419809288,1775392253165,-200.0,0.0001548,2]
[419809289,1775392253174,-150.0,0.00015481,2]
[419809290,1775392253183,-150.0,0.00015484,2]
[419809291,1775392253193,-150.0,0.00015484,2]
[419809292,1775392253203,-150.0,0.00015486,2]
[419809293,1775392253216,-150.0,0.00015486,2]
[419809294,1775392253227,-150.0,0.00015487,2]
[419809295,1775392253237,-150.0,0.0001549,2]
[419809296,1775392253246,-2000.0,0.00015501,2]
[419809297,1775392253256,-150.0,0.00015501,2]
[419809298,1775392253265,-150.0,0.00015502,2]
[419809299,1775392253274,-4000.0,0.00015507,2]
[419809300,1775392253283,-150.0,0.00015513,2]
[419809301,1775392253293,-150.0,0.00015514,2]
[419809302,1775392253303,-150.0,0.00015514,2]
[419809303,1775392253313,-150.0,0.00015517,2]
[419809304,1775392253322,-150.0,0.0001552,2]
[419809305,1775392253331,-150.0,0.00015522,2]
[419809306,1775392253341,-150.0,0.00015529,2]
[419809307,1775392253351,-150.0,0.00015533,2]
[419809308,1775392253361,-150.0,0.00015535,2]
[419809309,1775392253370,-150.0,0.00015536,2]
[419809310,1775392253380,-150.0,0.00015538,2]
[419809311,1775392253390,-150.0,0.00015543,2]
[419809312,1775392253399,-150.0,0.00015543,2]
[419809313,1775392253410,-150.0,0.00015543,2]
[419809314,1775392253419,-150.0,0.00015547,2]
[419809315,1775392253429,-150.0,0.00015556,2]
[419809316,1775392253439,-150.0,0.00015559,2]
[419809317,1775392253448,-150.0,0.00015564,2]
[419809318,1775392253458,-150.0,0.00015571,2]
[419809319,1775392253467,-150.0,0.00015571,2]
[419809320,1775392253477,-150.0,0.00015573,2]
[419809321,1775392253486,-150.0,0.00015577,2]
[419809322,1775392253496,-150.0,0.00015583,2]
[419809323,1775392253506,-150.0,0.00015584,2]
[419809324,1775392253515,-150.0,0.00015587,2]
[419809325,1775392253525,-150.0,0.00015591,2]
[419809326,1775392253535,-150.0,0.000156,2]
[419809327,1775392253544,-150.0,0.000156,2]
[419809328,1775392253555,-150.0,0.000156,2]
[419809329,1775392253564,-2000.0,0.00015601,2]
[419809330,1775392253574,-150.0,0.00015605,2]
[419809331,1775392253583,-150.0,0.00015606,2]
[419809332,1775392253593,-150.0,0.00015608,2]
[419809333,1775392253603,-150.0,0.00015609,2]
[419809334,1775392253612,-150.0,0.00015624,2]
[419809335,1775392253624,-150.0,0.00015626,2]
[419809336,1775392253634,-150.0,0.00015627,2]
[419809337,1775392253645,-150.0,0.00015629,2]
[419809338,1775392253655,-150.0,0.00015629,2]
[419809339,1775392253665,-150.0,0.00015629,2]
[419809340,1775392253675,-508.0,0.00015635,4]
[419809341,1775392253684,-150.0,0.00015638,2]
[419809342,1775392253693,-150.0,0.00015639,2]
[419809343,1775392253703,-150.0,0.00015644,2]
[419809344,1775392253712,-150.0,0.00015647,2]
[419809345,1775392253724,-150.0,0.00015652,2]
[419809346,1775392253733,-150.0,0.00015657,2]
[419809347,1775392253742,-150.0,0.00015657,2]
[419809348,1775392253751,-150.0,0.00015662,2]
[419809349,1775392253761,-150.0,0.00015667,2]
[419809350,1775392253771,-150.0,0.00015668,2]
[419809351,1775392253781,-150.0,0.00015668,2]
[419809352,1775392253791,-481.62,0.00015674,2]
[419809353,1775392253800,-150.0,0.00015675,2]
[419809354,1775392253810,-150.0,0.0001568,2]
[419809355,1775392253820,-150.0,0.0001568,2]
[419809356,1775392253831,-150.0,0.00015686,2]
[419809357,1775392253842,-150.0,0.00015686,2]
[419809358,1775392253851,-150.0,0.00015688,2]
[419809359,1775392253861,-150.0,0.0001569,2]
[419809360,1775392253871,-150.0,0.00015698,2]
[419809361,1775392253882,-150.0,0.00015698,2]
[419809362,1775392253892,-150.0,0.00015699,2]
[419809363,1775392253902,-2000.0,0.00015701,2]
[419809364,1775392253911,-150.0,0.00015709,2]
[419809365,1775392253921,-150.0,0.00015714,2]
[419809366,1775392253932,-150.0,0.00015714,2]
[419809367,1775392253943,-150.0,0.00015716,2]
[419809368,1775392253952,-150.0,0.00015718,2]
[419809369,1775392253961,-150.0,0.00015722,2]
[419809370,1775392253971,-150.0,0.00015728,2]
[419809371,1775392253983,-150.0,0.0001573,2]
[419809372,1775392253992,-150.0,0.00015733,2]
[419809373,1775392254002,-150.0,0.00015733,2]
[419809374,1775392254012,-150.0,0.00015742,2]
[419809375,1775392254022,-150.0,0.00015743,2]
[419809376,1775392254031,-150.0,0.00015743,2]
[419809377,1775392254041,-150.0,0.00015745,2]
[419809378,1775392254050,-150.0,0.00015751,2]
[419809379,1775392254059,-150.0,0.00015751,2]
[419809380,1775392254069,-349.0,0.00015753,2]
[419809381,1775392254078,-262.0,0.00015753,2]
[419809382,1775392254087,-150.0,0.00015758,2]
[419809383,1775392254097,-150.0,0.00015768,2]
[419809384,1775392254106,-150.0,0.00015769,2]
[419809385,1775392254116,-150.0,0.00015771,2]
[419809386,1775392254125,-150.0,0.00015771,2]
[419809387,1775392254135,-150.0,0.00015771,2]
[419809388,1775392254144,-151.39,0.00015779,2]
[419809389,1775392254153,-151.39,0.00015779,2]
[419809390,1775392254163,-151.39,0.00015779,2]
[419809391,1775392254172,-151.39,0.00015779,2]
[419809392,1775392254181,-1538.701433,0.00015779,2]
[419809393,1775392254196,-1500.0,0.00015779,2]
[419809394,1775392254219,-1500.0,0.00015779,2]
[419809395,1775392254236,-1500.0,0.00015779,2]
[419809396,1775392254258,-1500.0,0.00015779,2]
[419809397,1775392254277,-1500.0,0.00015779,2]
[419809398,1775392254296,-1500.0,0.00015779,2]
[419809399,1775392254312,-1500.0,0.00015779,2]
[419809400,1775392254331,-1500.0,0.00015779,2]
[419809401,1775392254349,-1500.0,0.00015779,2]
[419809402,1775392254370,-1544.912597,0.00015779,2]
[419809403,1775392254383,-150.0,0.00015787,2]
[419809404,1775392254401,-150.0,0.00015789,2]
[419809405,1775392254420,-150.0,0.00015791,2]
[419809406,1775392254439,-150.0,0.00015792,2]
[419809407,1775392254452,-150.0,0.00015794,2]
[419809408,1775392254468,-167.9673,0.000158,2]
[419809409,1775392254484,-167.9673,0.000158,2]
[419809410,1775392254498,-167.9673,0.000158,2]
[419809411,1775392254513,-2744.68006612,0.000158,2]
[419809412,1775392254530,-167.9673,0.000158,2]
[419809413,1775392254546,-167.9673,0.000158,2]
[419809414,1775392254563,-167.9673,0.000158,2]
[419809415,1775392254579,-167.9673,0.000158,2]
[419809416,1775392254595,-150.0,0.000158,2]
[419809417,1775392254610,-150.0,0.000158,2]
[419809418,1775392254626,-150.0,0.000158,2]
[419809419,1775392254643,-1351.01242561,0.00015801,2]
[419809420,1775392254659,-2000.0,0.00015801,2]
[419809421,1775392254674,-150.0,0.00015804,2]
[419809422,1775392254690,-150.0,0.00015812,2]
[419809423,1775392254716,-150.0,0.00015813,2]
[419809424,1775392254731,-150.0,0.00015814,2]
[419809425,1775392254748,-150.0,0.00015819,2]
[419809426,1775392254764,-150.0,0.00015822,2]
[419809427,1775392254781,-150.0,0.00015829,2]
[419809428,1775392254798,-150.0,0.00015829,2]
[419809429,1775392254814,-150.0,0.00015834,2]
[419809430,1775392254830,-150.0,0.00015838,2]
[419809431,1775392254846,-588.99,0.00015839,2]
[419809432,1775392254862,-969.24,0.00015839,2]
[419809433,1775392254885,-166143.042,0.0001584,2]
[419809434,1775392254902,-97697.2091726,0.0001584,2]
[419809435,1775392254918,-150.0,0.0001584,2]
[419809436,1775392254934,-5888.0,0.00015845,2]
[419809437,1775392254952,-150.0,0.00015845,2]
[419809438,1775392254968,-150.0,0.00015849,2]
[419809439,1775392254985,-5888.0,0.00015852,2]
[419809440,1775392255001,-150.0,0.00015855,2]
[419809441,1775392255023,-150.0,0.00015857,2]
[419809442,1775392255039,-150.0,0.00015857,2]
[419809443,1775392255056,-150.0,0.00015858,2]
[419809444,1775392255072,-150.0,0.00015861,2]
[419809445,1775392255088,-150.0,0.00015867,2]
[419809446,1775392255104,-500.0,0.00015872,2]
[419809447,1775392255121,-150.0,0.00015875,2]
[419809448,1775392255136,-150.0,0.00015876,2]
[419809449,1775392255154,-150.0,0.00015879,2]
[419809450,1775392255171,-150.0,0.00015884,2]
[419809451,1775392255187,-150.0,0.00015886,2]
[419809452,1775392255203,-150.0,0.00015886,2]
[419809453,1775392255219,-500.0,0.0001589,2]
[419809454,1775392255234,-500.0,0.0001589,2]
[419809455,1775392255251,-500.0,0.0001589,2]
[419809456,1775392255267,-500.0,0.0001589,2]
[419809457,1775392255283,-500.0,0.0001589,2]
[419809458,1775392255301,-500.0,0.0001589,2]
[419809459,1775392255316,-500.0,0.0001589,2]
[419809460,1775392255332,-500.0,0.0001589,2]
[419809461,1775392255347,-500.0,0.0001589,2]
[419809462,1775392255364,-500.0,0.0001589,2]
[419809463,1775392255379,-500.0,0.0001589,2]
[419809464,1775392255395,-250.0,0.0001589,2]
[419809465,1775392255411,-250.0,0.0001589,2]
[419809466,1775392255427,-250.0,0.0001589,2]
[419809467,1775392255443,-2000.0,0.0001589,2]
[419809468,1775392255458,-950.63286364,0.0001589,2]
[419809469,1775392255474,-2500.0,0.0001589,2]
[419809470,1775392255489,-2581.70386222,0.0001589,2]
[419809471,1775392255506,-2509.3602543,0.0001589,2]
[419809472,1775392255521,-823.00574972,0.0001589,2]
[419809473,1775392255537,-2500.0,0.0001589,2]
[419809474,1775392255553,-2447.77606198,0.0001589,2]
[419809475,1775392255569,-701.4485258,0.0001589,2]
[419809476,1775392255584,-270.29905968,0.0001589,2]
[419809477,1775392255600,-2500.0,0.0001589,2]
[419809478,1775392255616,-1100.33490613,0.0001589,2]
[419809479,1775392255632,-2500.0,0.0001589,2]
[419809480,1775392255648,-2006.37622858,0.0001589,2]
[419809481,1775392255664,-150.0,0.00015893,2]
[419809482,1775392255679,-4000.0,0.00015895,2]
[419809483,1775392255696,-150.0,0.00015896,2]
[419809484,1775392255711,-150.0,0.00015897,2]
[419809485,1775392255727,-588.99,0.00015899,2]
[419809486,1775392255743,-588.99,0.00015899,2]
[419809487,1775392255759,-588.99,0.00015899,2]
[419809488,1775392255776,-588.99,0.00015899,2]
[419809489,1775392255792,-588.99,0.00015899,2]
[419809490,1775392255808,-969.24,0.00015899,2]
[419809491,1775392255823,-969.24,0.00015899,2]
[419809492,1775392255838,-969.24,0.00015899,2]
[419809493,1775392255854,-969.24,0.00015899,2]
[419809494,1775392255871,-969.27278756,0.00015899,2]
[419809495,1775392255886,-1192.9,0.00015899,2]
[419809496,1775392255902,-1192.9,0.00015899,2]
[419809497,1775392255919,-1192.9,0.00015899,2]
[419809498,1775392255934,-1192.9,0.00015899,2]
[419809499,1775392255949,-1192.9,0.00015899,2]
[419809500,1775392255965,-1192.9,0.00015899,2]
[419809501,1775392255980,-1192.9,0.00015899,2]
[419809502,1775392255996,-1192.9,0.00015899,2]
[419809503,1775392256012,-1192.9,0.00015899,2]
[419809504,1775392256028,-1192.9,0.00015899,2]
[419809505,1775392256044,-1192.9,0.00015899,2]
[419809506,1775392256059,-1193.02799859,0.00015899,2]
[419809507,1775392256075,-1122.33,0.00015899,2]
[419809508,1775392256091,-1122.33,0.00015899,2]
[419809509,1775392256108,-1122.33,0.00015899,2]
[419809510,1775392256123,-1122.33,0.00015899,2]
[419809511,1775392256139,-1122.33,0.00015899,2]
[419809512,1775392256154,-1122.33,0.00015899,2]
[419809513,1775392256168,-1122.33,0.00015899,2]
[419809514,1775392256183,-1122.33,0.00015899,2]
[419809515,1775392256198,-1122.33,0.00015899,2]